[Event "Early-Titled-Tuesday-Blitz-May-28-2024"]
[Site "Chess.com"]
[Date "2024.05.28"]
[Round "8"]
[White "Matsanovic"]
[Black "Aygehovit1992"]
[Result "0-1"]
[WhiteElo "2626"]
[BlackElo "2829"]
[TimeControl "180+1"]
[EndTime "9:32:13 PDT"]
[Termination "Aygehovit1992 won by resignation"]

1. e4 {[%clk 0:03:00.9]} 1... c5 {[%clk 0:02:56.1]} 2. Nf3 {[%clk 0:02:59.9]}
2... e6 {[%clk 0:02:56.7]} 3. Qe2 {[%clk 0:02:57.9]} 3... Nc6 {[%clk 0:02:56.1]}
4. g3 {[%clk 0:02:58]} 4... e5 {[%clk 0:02:55]} 5. c3 {[%clk 0:02:55.7]} 5...
Nf6 {[%clk 0:02:55.2]} 6. Bg2 {[%clk 0:02:55.2]} 6... Be7 {[%clk 0:02:55.1]} 7.
O-O {[%clk 0:02:54.8]} 7... O-O {[%clk 0:02:55.4]} 8. d3 {[%clk 0:02:39.9]} 8...
Re8 {[%clk 0:02:53.5]} 9. a3 {[%clk 0:02:37.8]} 9... d5 {[%clk 0:02:53.4]} 10.
b4 {[%clk 0:02:35.8]} 10... dxe4 {[%clk 0:02:43.9]} 11. dxe4 {[%clk 0:02:34.9]}
11... h6 {[%clk 0:02:35.9]} 12. Rd1 {[%clk 0:02:33.3]} 12... Qc7 {[%clk
0:02:35.5]} 13. Nbd2 {[%clk 0:02:30.1]} 13... Be6 {[%clk 0:02:32.2]} 14. Bb2
{[%clk 0:02:25.8]} 14... Rad8 {[%clk 0:02:02.1]} 15. b5 {[%clk 0:02:22.9]} 15...
Na5 {[%clk 0:02:01.7]} 16. c4 {[%clk 0:02:22.7]} 16... Nd7 {[%clk 0:01:52.9]}
17. Bc3 {[%clk 0:01:55.8]} 17... Bf6 {[%clk 0:01:11.9]} 18. h4 {[%clk 0:01:46]}
18... Bg4 {[%clk 0:00:57.9]} 19. Kh2 {[%clk 0:01:29.1]} 19... Nf8 {[%clk
0:00:57.2]} 20. Bh3 {[%clk 0:01:24.7]} 20... Bxh3 {[%clk 0:00:54.8]} 21. Kxh3
{[%clk 0:01:23.7]} 21... Ne6 {[%clk 0:00:53.9]} 22. Kg2 {[%clk 0:01:11.2]} 22...
Nd4 {[%clk 0:00:50.9]} 23. Nxd4 {[%clk 0:00:55.3]} 23... exd4 {[%clk 0:00:51.8]}
24. Bxa5 {[%clk 0:00:55.4]} 24... Qxa5 {[%clk 0:00:51.6]} 25. Qd3 {[%clk
0:00:55.4]} 25... Qc3 {[%clk 0:00:49.2]} 26. Nb3 {[%clk 0:00:48.3]} 26... b6
{[%clk 0:00:47]} 27. f3 {[%clk 0:00:43.5]} 27... g6 {[%clk 0:00:44.7]} 28. Rac1
{[%clk 0:00:38.7]} 28... Qxd3 {[%clk 0:00:44.9]} 29. Rxd3 {[%clk 0:00:38.1]}
29... h5 {[%clk 0:00:39.9]} 30. Re1 {[%clk 0:00:31.2]} 30... Re7 {[%clk
0:00:39.1]} 31. f4 {[%clk 0:00:27.3]} 31... Bg7 {[%clk 0:00:39.1]} 32. Kf3
{[%clk 0:00:26.4]} 32... a6 {[%clk 0:00:38]} 33. a4 {[%clk 0:00:25.1]} 33...
axb5 {[%clk 0:00:37.7]} 34. axb5 {[%clk 0:00:19.9]} 34... Ra8 {[%clk 0:00:37.2]}
35. Ra1 {[%clk 0:00:18]} 35... Rxa1 {[%clk 0:00:32.1]} 36. Nxa1 {[%clk
0:00:17.7]} 36... Ra7 {[%clk 0:00:33]} 37. Nb3 {[%clk 0:00:13.3]} 37... f6
{[%clk 0:00:21.6]} 38. Nd2 {[%clk 0:00:13]} 38... Kf7 {[%clk 0:00:20.5]} 39. Ke2
{[%clk 0:00:13.2]} 39... Ke6 {[%clk 0:00:20]} 40. Rb3 {[%clk 0:00:13.1]} 40...
Ra1 {[%clk 0:00:18.7]} 41. Rb1 {[%clk 0:00:12.7]} 41... Ra2 {[%clk 0:00:18.2]}
42. Kd3 {[%clk 0:00:13.2]} 42... g5 {[%clk 0:00:16.6]} 43. hxg5 {[%clk
0:00:12.1]} 43... fxg5 {[%clk 0:00:17.1]} 44. fxg5 {[%clk 0:00:10.5]} 44... Be5
{[%clk 0:00:15.9]} 45. Rg1 {[%clk 0:00:10.3]} 45... Ra3+ {[%clk 0:00:15.3]} 46.
Ke2 {[%clk 0:00:10]} 46... Re3+ {[%clk 0:00:04]} 47. Kf2 {[%clk 0:00:09.1]}
47... Rc3 {[%clk 0:00:04.6]} 48. Ke2 {[%clk 0:00:06.7]} 48... Kf7 {[%clk
0:00:03.3]} 49. Rf1+ {[%clk 0:00:06.2]} 49... Kg6 {[%clk 0:00:03.5]} 50. Rf3
{[%clk 0:00:06.4]} 50... Rc2 {[%clk 0:00:02.6]} 51. Rf5 {[%clk 0:00:05.6]} 51...
Bxg3 {[%clk 0:00:02.7]} 52. Kd3 {[%clk 0:00:05.9]} 52... Rc3+ {[%clk 0:00:02.8]}
53. Ke2 {[%clk 0:00:05.9]} 53... Re3+ {[%clk 0:00:03.5]} 54. Kd1 {[%clk
0:00:05.6]} 54... h4 {[%clk 0:00:04.4]} 55. Nf1 {[%clk 0:00:04.8]} 55... Rd3+
{[%clk 0:00:04.1]} 56. Ke2 {[%clk 0:00:05]} 56... Rc3 {[%clk 0:00:04.7]} 57. Nd2
{[%clk 0:00:03.8]} 57... h3 {[%clk 0:00:04]} 58. Nf3 {[%clk 0:00:02.5]} 58... h2
{[%clk 0:00:04.2]} 59. Rf6+ {[%clk 0:00:03.1]} 59... Kh5 {[%clk 0:00:03.7]} 60.
Rh6+ {[%clk 0:00:03.7]} 60... Kg4 {[%clk 0:00:04.3]} 61. Nxh2+ {[%clk
0:00:03.4]} 61... Bxh2 {[%clk 0:00:04.6]} 62. g6 {[%clk 0:00:02.1]} 62... Be5
{[%clk 0:00:04.7]} 63. g7 {[%clk 0:00:01.2]} 63... Bxg7 {[%clk 0:00:04.4]} 64.
Rg6+ {[%clk 0:00:02]} 64... Kf4 {[%clk 0:00:04.8]} 65. Rxg7 {[%clk 0:00:02.9]}
65... Rc2+ {[%clk 0:00:04.4]} 66. Kd3 {[%clk 0:00:02]} 66... Rc3+ {[%clk
0:00:04.9]} 67. Kd2 {[%clk 0:00:02.4]} 67... Rxc4 {[%clk 0:00:05.2]} 68. Rc7
{[%clk 0:00:01.2]} 68... Kxe4 {[%clk 0:00:05.4]} 69. Rb7 {[%clk 0:00:01.7]}
69... Rb4 {[%clk 0:00:05.5]} 70. Rxb6 {[%clk 0:00:02.4]} 70... Kd5 {[%clk
0:00:05.8]} 71. Rb8 {[%clk 0:00:02]} 71... c4 {[%clk 0:00:05.6]} 72. b6 {[%clk
0:00:02.9]} 72... Kc6 {[%clk 0:00:05.5]} 73. Rc8+ {[%clk 0:00:02.4]} 73... Kxb6
{[%clk 0:00:05.5]} 74. Rd8 {[%clk 0:00:03.1]} 74... Kc5 {[%clk 0:00:05.8]} 75.
Rc8+ {[%clk 0:00:03.5]} 75... Kb5 {[%clk 0:00:06.3]} 76. Rd8 {[%clk 0:00:04.4]}
76... Rb2+ {[%clk 0:00:06.1]} 77. Kc1 {[%clk 0:00:04.2]} 77... Rg2 {[%clk
0:00:03.9]} 78. Rxd4 {[%clk 0:00:04.4]} 78... Kb4 {[%clk 0:00:04.7]} 79. Rd8
{[%clk 0:00:04.5]} 79... Kc3 {[%clk 0:00:05]} 80. Kb1 {[%clk 0:00:03.6]} 80...
Rg1+ {[%clk 0:00:05.2]} 81. Ka2 {[%clk 0:00:04.1]} 81... Kc2 {[%clk 0:00:05.8]}
82. Rf8 {[%clk 0:00:03.5]} 82... c3 {[%clk 0:00:06]} 83. Rf2+ {[%clk 0:00:04]}
83... Kd3 {[%clk 0:00:05.2]} 84. Kb3 {[%clk 0:00:03.8]} 84... Rb1+ {[%clk
0:00:04.8]} 85. Ka2 {[%clk 0:00:04]} 85... c2 {[%clk 0:00:05.7]} 86. Rf3+ {[%clk
0:00:03.1]} 86... Ke4 {[%clk 0:00:05.9]} 87. Rc3 {[%clk 0:00:01]} 87... c1=Q
{[%clk 0:00:06.2]} 88. Rxc1 {[%clk 0:00:01.2]} 88... Rxc1 {[%clk 0:00:07.1]} 0-1

[Event "Early-Titled-Tuesday-Blitz-May-28-2024"]
[Site "Chess.com"]
[Date "2024.05.28"]
[Round "8"]
[White "BashirliSaadat"]
[Black "HajiyevKanan"]
[Result "0-1"]
[WhiteElo "2371"]
[BlackElo "2516"]
[TimeControl "180+1"]
[EndTime "9:32:15 PDT"]
[Termination "HajiyevKanan won by checkmate"]

1. d4 {[%clk 0:03:00.9]} 1... c6 {[%clk 0:02:59.8]} 2. e3 {[%clk 0:03:00.7]}
2... d5 {[%clk 0:03:00.7]} 3. f4 {[%clk 0:02:59.6]} 3... Nf6 {[%clk 0:03:00.8]}
4. Bd3 {[%clk 0:02:59.9]} 4... Bg4 {[%clk 0:03:01.2]} 5. Nf3 {[%clk 0:02:59.9]}
5... h5 {[%clk 0:03:01.5]} 6. h3 {[%clk 0:02:58.4]} 6... Bxf3 {[%clk 0:03:01.7]}
7. Qxf3 {[%clk 0:02:58.9]} 7... e6 {[%clk 0:03:02.6]} 8. Nd2 {[%clk 0:02:58.8]}
8... c5 {[%clk 0:03:02.8]} 9. c3 {[%clk 0:02:58.5]} 9... Nc6 {[%clk 0:03:03.1]}
10. O-O {[%clk 0:02:58.9]} 10... Qb6 {[%clk 0:03:03.5]} 11. b3 {[%clk
0:02:58.6]} 11... Rc8 {[%clk 0:03:02.3]} 12. Bb2 {[%clk 0:02:58.3]} 12... g6
{[%clk 0:03:02.8]} 13. Rac1 {[%clk 0:02:53.7]} 13... cxd4 {[%clk 0:03:01.9]} 14.
exd4 {[%clk 0:02:52.8]} 14... Bd6 {[%clk 0:02:57.4]} 15. Bb1 {[%clk 0:02:46.1]}
15... h4 {[%clk 0:02:47]} 16. Qe3 {[%clk 0:02:41.7]} 16... Kd7 {[%clk
0:02:44.4]} 17. c4 {[%clk 0:02:35.1]} 17... Qc7 {[%clk 0:02:26.8]} 18. c5 {[%clk
0:02:18.9]} 18... Bf8 {[%clk 0:02:18]} 19. Nf3 {[%clk 0:02:12.6]} 19... Bh6
{[%clk 0:02:16.5]} 20. Ne5+ {[%clk 0:02:11.3]} 20... Nxe5 {[%clk 0:02:15]} 21.
dxe5 {[%clk 0:02:12.2]} 21... Ng8 {[%clk 0:02:14.1]} 22. b4 {[%clk 0:02:07.4]}
22... a6 {[%clk 0:02:06.7]} 23. a4 {[%clk 0:02:04.5]} 23... Ne7 {[%clk
0:02:06.9]} 24. b5 {[%clk 0:01:59.5]} 24... axb5 {[%clk 0:02:07.8]} 25. axb5
{[%clk 0:01:59.9]} 25... Nf5 {[%clk 0:02:08.7]} 26. c6+ {[%clk 0:01:53.8]} 26...
bxc6 {[%clk 0:02:02.6]} 27. bxc6+ {[%clk 0:01:54.7]} 27... Qxc6 {[%clk
0:01:56.2]} 28. Bxf5 {[%clk 0:01:50.2]} 28... Qb7 {[%clk 0:01:35.8]} 29. Bxe6+
{[%clk 0:01:23.3]} 29... fxe6 {[%clk 0:01:06.1]} 30. Bd4 {[%clk 0:01:00.7]}
30... Ke7 {[%clk 0:00:53.5]} 31. Qd3 {[%clk 0:00:42]} 31... Kf7 {[%clk
0:00:50.3]} 32. Ra1 {[%clk 0:00:38.5]} 32... Ra8 {[%clk 0:00:46.5]} 33. Rab1
{[%clk 0:00:38.7]} 33... Qd7 {[%clk 0:00:38.3]} 34. Rb6 {[%clk 0:00:31.4]} 34...
Rhb8 {[%clk 0:00:31.5]} 35. Rd6 {[%clk 0:00:31.4]} 35... Qc7 {[%clk 0:00:32]}
36. Qf3 {[%clk 0:00:25.6]} 36... Qc4 {[%clk 0:00:26.6]} 37. Be3 {[%clk
0:00:22.3]} 37... Qe4 {[%clk 0:00:24]} 38. Rd7+ {[%clk 0:00:17.2]} 38... Ke8
{[%clk 0:00:23.7]} 39. Rh7 {[%clk 0:00:16]} 39... Qxf3 {[%clk 0:00:17.5]} 40.
Rxf3 {[%clk 0:00:15.3]} 40... Bf8 {[%clk 0:00:17.7]} 41. Rh8 {[%clk 0:00:14.5]}
41... Ra1+ {[%clk 0:00:15.2]} 42. Kh2 {[%clk 0:00:14.4]} 42... Kf7 {[%clk
0:00:13.4]} 43. Rh7+ {[%clk 0:00:13.5]} 43... Bg7 {[%clk 0:00:12.8]} 44. Rxh4
{[%clk 0:00:10.6]} 44... Rb2 {[%clk 0:00:12]} 45. Bd4 {[%clk 0:00:09.5]} 45...
Raa2 {[%clk 0:00:09.4]} 46. Bxb2 {[%clk 0:00:09.8]} 46... Rxb2 {[%clk
0:00:10.3]} 47. Rg4 {[%clk 0:00:10.3]} 47... Rb4 {[%clk 0:00:10.3]} 48. Rgg3
{[%clk 0:00:10.1]} 48... Re4 {[%clk 0:00:10.3]} 49. Rg4 {[%clk 0:00:07.8]} 49...
Bh6 {[%clk 0:00:10.6]} 50. g3 {[%clk 0:00:07.6]} 50... Kg7 {[%clk 0:00:11.2]}
51. h4 {[%clk 0:00:07.8]} 51... Kf7 {[%clk 0:00:11.4]} 52. h5 {[%clk 0:00:07.9]}
52... gxh5 {[%clk 0:00:12.3]} 53. Rh4 {[%clk 0:00:08.4]} 53... Kg6 {[%clk
0:00:13]} 54. Kg2 {[%clk 0:00:08.8]} 54... Re2+ {[%clk 0:00:13.1]} 55. Rf2
{[%clk 0:00:09.2]} 55... Re1 {[%clk 0:00:13.8]} 56. Rh1 {[%clk 0:00:09.5]} 56...
Re4 {[%clk 0:00:14]} 57. Rd1 {[%clk 0:00:09.5]} 57... h4 {[%clk 0:00:14.1]} 58.
Rh1 {[%clk 0:00:07.7]} 58... hxg3 {[%clk 0:00:13.9]} 59. Kxg3 {[%clk 0:00:08.6]}
59... Re3+ {[%clk 0:00:14.1]} 60. Rf3 {[%clk 0:00:09.3]} 60... Re4 {[%clk
0:00:13.5]} 61. Rb1 {[%clk 0:00:09.3]} 61... Kf5 {[%clk 0:00:13.1]} 62. Rb7
{[%clk 0:00:08.5]} 62... Bxf4+ {[%clk 0:00:13.7]} 63. Kf2 {[%clk 0:00:08.2]}
63... Kxe5 {[%clk 0:00:14.1]} 64. Rf7 {[%clk 0:00:08.3]} 64... Bg5 {[%clk
0:00:12.6]} 65. Rg7 {[%clk 0:00:08]} 65... Bf6 {[%clk 0:00:11.3]} 66. Rg6 {[%clk
0:00:07.4]} 66... Bh4+ {[%clk 0:00:12.1]} 67. Kg2 {[%clk 0:00:07.3]} 67... d4
{[%clk 0:00:13]} 68. Kh3 {[%clk 0:00:07.2]} 68... Be1 {[%clk 0:00:11.7]} 69.
Rg5+ {[%clk 0:00:05.7]} 69... Kd6 {[%clk 0:00:11.8]} 70. Rg2 {[%clk 0:00:06.2]}
70... e5 {[%clk 0:00:10.8]} 71. Ra2 {[%clk 0:00:05.9]} 71... Kd5 {[%clk
0:00:09.9]} 72. Kg2 {[%clk 0:00:06]} 72... Bc3 {[%clk 0:00:08.9]} 73. Kf2 {[%clk
0:00:05.5]} 73... Rh4 {[%clk 0:00:09]} 74. Kg3 {[%clk 0:00:05.2]} 74... Rh7
{[%clk 0:00:08.3]} 75. Ra8 {[%clk 0:00:03.4]} 75... Rg7+ {[%clk 0:00:08]} 76.
Kf2 {[%clk 0:00:03.2]} 76... Ke4 {[%clk 0:00:08.9]} 77. Re8 {[%clk 0:00:02.4]}
77... Rh7 {[%clk 0:00:08.8]} 78. Kg2 {[%clk 0:00:02.5]} 78... Rg7+ {[%clk
0:00:09]} 79. Kf2 {[%clk 0:00:02.8]} 79... Bb4 {[%clk 0:00:08.4]} 80. Ref8
{[%clk 0:00:02.6]} 80... Bxf8 {[%clk 0:00:08]} 81. Rxf8 {[%clk 0:00:02.7]} 81...
Ra7 {[%clk 0:00:08.9]} 82. Ke2 {[%clk 0:00:02.6]} 82... Ra2+ {[%clk 0:00:09.1]}
83. Kd1 {[%clk 0:00:03.3]} 83... Kd3 {[%clk 0:00:09.5]} 84. Rf3+ {[%clk
0:00:03.9]} 84... Ke4 {[%clk 0:00:09.9]} 85. Rh3 {[%clk 0:00:04.2]} 85... d3
{[%clk 0:00:10.1]} 86. Rh4+ {[%clk 0:00:04.8]} 86... Kd5 {[%clk 0:00:10.6]} 87.
Kc1 {[%clk 0:00:04.2]} 87... e4 {[%clk 0:00:10.5]} 88. Rh8 {[%clk 0:00:05.1]}
88... Kd4 {[%clk 0:00:10.8]} 89. Kd1 {[%clk 0:00:05.2]} 89... Ra1+ {[%clk
0:00:10.4]} 90. Kd2 {[%clk 0:00:05.6]} 90... e3# {[%clk 0:00:11.3]} 0-1

[Event "Early-Titled-Tuesday-Blitz-May-28-2024"]
[Site "Chess.com"]
[Date "2024.05.28"]
[Round "8"]
[White "Bykov_Egor"]
[Black "CristianS27"]
[Result "1/2-1/2"]
[WhiteElo "2654"]
[BlackElo "2538"]
[TimeControl "180+1"]
[EndTime "9:32:19 PDT"]
[Termination "Game drawn - insufficient material"]

1. e4 {[%clk 0:02:50.7]} 1... e5 {[%clk 0:02:55.5]} 2. Nf3 {[%clk 0:02:51.2]}
2... Nc6 {[%clk 0:02:55.4]} 3. Bc4 {[%clk 0:02:51.9]} 3... Nf6 {[%clk
0:02:55.5]} 4. Ng5 {[%clk 0:02:51.4]} 4... d5 {[%clk 0:02:55.3]} 5. exd5 {[%clk
0:02:52.3]} 5... Nd4 {[%clk 0:02:56]} 6. c3 {[%clk 0:02:46.8]} 6... b5 {[%clk
0:02:56.2]} 7. Bf1 {[%clk 0:02:46.9]} 7... Nxd5 {[%clk 0:02:53.8]} 8. cxd4
{[%clk 0:02:41.3]} 8... Qxg5 {[%clk 0:02:53.1]} 9. Bxb5+ {[%clk 0:02:41.9]} 9...
Kd8 {[%clk 0:02:53.8]} 10. O-O {[%clk 0:02:39]} 10... exd4 {[%clk 0:02:52.3]}
11. d3 {[%clk 0:02:10.3]} 11... Qg6 {[%clk 0:02:46.7]} 12. Qf3 {[%clk
0:02:00.7]} 12... Bb7 {[%clk 0:02:38.8]} 13. Qh3 {[%clk 0:02:00.2]} 13... c6
{[%clk 0:02:03.7]} 14. Bc4 {[%clk 0:01:56]} 14... Nf6 {[%clk 0:02:02.7]} 15. Bd2
{[%clk 0:01:49.4]} 15... a5 {[%clk 0:01:47.4]} 16. Bf4 {[%clk 0:01:40.5]} 16...
Be7 {[%clk 0:01:24.2]} 17. Re1 {[%clk 0:01:34.5]} 17... Nd5 {[%clk 0:01:11.6]}
18. Bxd5 {[%clk 0:01:31]} 18... cxd5 {[%clk 0:01:12.5]} 19. Na3 {[%clk
0:01:14.1]} 19... Bc8 {[%clk 0:00:56.8]} 20. Bc7+ {[%clk 0:01:06.7]} 20... Ke8
{[%clk 0:00:56.7]} 21. Qh4 {[%clk 0:01:05.8]} 21... Be6 {[%clk 0:00:54.3]} 22.
Qxd4 {[%clk 0:01:05.1]} 22... h5 {[%clk 0:00:44.8]} 23. Rac1 {[%clk 0:01:04]}
23... h4 {[%clk 0:00:44.4]} 24. Nb5 {[%clk 0:01:02.4]} 24... h3 {[%clk
0:00:43.5]} 25. g3 {[%clk 0:01:00.3]} 25... Kf8 {[%clk 0:00:41.8]} 26. Bd6
{[%clk 0:00:53.4]} 26... Bxd6 {[%clk 0:00:41.3]} 27. Nxd6 {[%clk 0:00:54.3]}
27... Kg8 {[%clk 0:00:35.6]} 28. Rc7 {[%clk 0:00:49.5]} 28... Qh5 {[%clk
0:00:34.6]} 29. Qf4 {[%clk 0:00:47.7]} 29... Rb8 {[%clk 0:00:29.7]} 30. b3
{[%clk 0:00:40]} 30... Rh6 {[%clk 0:00:30.2]} 31. Re7 {[%clk 0:00:26.7]} 31...
Rf6 {[%clk 0:00:26.7]} 32. Qe3 {[%clk 0:00:22.7]} 32... d4 {[%clk 0:00:19.4]}
33. Qe2 {[%clk 0:00:19.3]} 33... Qxe2 {[%clk 0:00:16.4]} 34. Rxe2 {[%clk
0:00:20.2]} 34... Bg4 {[%clk 0:00:17.3]} 35. Re8+ {[%clk 0:00:19.6]} 35... Rxe8
{[%clk 0:00:14.7]} 36. Rxe8+ {[%clk 0:00:20.5]} 36... Kh7 {[%clk 0:00:15.2]} 37.
Ne4 {[%clk 0:00:21.4]} 37... Rc6 {[%clk 0:00:14]} 38. f3 {[%clk 0:00:18.5]}
38... Rc1+ {[%clk 0:00:07.2]} 39. Kf2 {[%clk 0:00:19]} 39... Rc2+ {[%clk
0:00:08.1]} 40. Ke1 {[%clk 0:00:19.5]} 40... Be6 {[%clk 0:00:03.4]} 41. Ng5+
{[%clk 0:00:16.4]} 41... Kg6 {[%clk 0:00:04]} 42. Nxe6 {[%clk 0:00:17.3]} 42...
fxe6 {[%clk 0:00:02.2]} 43. Rxe6+ {[%clk 0:00:18.2]} 43... Kf7 {[%clk
0:00:02.2]} 44. Re2 {[%clk 0:00:19.1]} 44... Rc1+ {[%clk 0:00:01.4]} 45. Kf2
{[%clk 0:00:19.5]} 45... Rh1 {[%clk 0:00:01.8]} 46. Re1 {[%clk 0:00:14.9]} 46...
Rxh2+ {[%clk 0:00:02.1]} 47. Kg1 {[%clk 0:00:15.6]} 47... Rxa2 {[%clk
0:00:02.8]} 48. Kh1 {[%clk 0:00:16.3]} 48... Rb2 {[%clk 0:00:02.9]} 49. Re4
{[%clk 0:00:16.8]} 49... Rxb3 {[%clk 0:00:01.9]} 50. Rxd4 {[%clk 0:00:17.5]}
50... Rb2 {[%clk 0:00:01.5]} 51. Ra4 {[%clk 0:00:17.3]} 51... Rd2 {[%clk
0:00:01]} 52. Rxa5 {[%clk 0:00:17.9]} 52... Rxd3 {[%clk 0:00:01.6]} 53. Rf5+
{[%clk 0:00:18.6]} 53... Kg6 {[%clk 0:00:01.6]} 54. g4 {[%clk 0:00:19.1]} 54...
Rd2 {[%clk 0:00:01.2]} 55. Rh5 {[%clk 0:00:18.5]} 55... h2 {[%clk 0:00:01]} 56.
Rxh2 {[%clk 0:00:18.7]} 56... Rd1+ {[%clk 0:00:01.5]} 57. Kg2 {[%clk 0:00:19.2]}
57... Rd2+ {[%clk 0:00:02.4]} 58. Kg3 {[%clk 0:00:19.7]} 58... Rd3 {[%clk
0:00:02.8]} 59. Re2 {[%clk 0:00:20.3]} 59... Ra3 {[%clk 0:00:03.3]} 60. Re6+
{[%clk 0:00:20.8]} 60... Kf7 {[%clk 0:00:03.6]} 61. Re4 {[%clk 0:00:21.7]} 61...
Rb3 {[%clk 0:00:04]} 62. Kf4 {[%clk 0:00:22.6]} 62... Ra3 {[%clk 0:00:04.6]} 63.
Rb4 {[%clk 0:00:23.1]} 63... Rc3 {[%clk 0:00:04.7]} 64. Rb7+ {[%clk 0:00:23.7]}
64... Kf6 {[%clk 0:00:04.2]} 65. g5+ {[%clk 0:00:24.2]} 65... Kg6 {[%clk
0:00:04.4]} 66. Kg4 {[%clk 0:00:24.7]} 66... Rc4+ {[%clk 0:00:04.6]} 67. f4
{[%clk 0:00:25.3]} 67... Ra4 {[%clk 0:00:05.2]} 68. Rb6+ {[%clk 0:00:25.2]}
68... Kf7 {[%clk 0:00:05.5]} 69. Rb5 {[%clk 0:00:25.5]} 69... Rc4 {[%clk
0:00:05.7]} 70. Rf5+ {[%clk 0:00:26.1]} 70... Kg6 {[%clk 0:00:05.5]} 71. Rd5
{[%clk 0:00:26.1]} 71... Ra4 {[%clk 0:00:05.8]} 72. Rd6+ {[%clk 0:00:26.5]}
72... Kf7 {[%clk 0:00:06]} 73. g6+ {[%clk 0:00:27.4]} 73... Ke7 {[%clk
0:00:05.5]} 74. Rb6 {[%clk 0:00:28]} 74... Rc4 {[%clk 0:00:05.1]} 75. Kg5 {[%clk
0:00:28.5]} 75... Rc1 {[%clk 0:00:04.3]} 76. Rb7+ {[%clk 0:00:28.5]} 76... Kf8
{[%clk 0:00:04.7]} 77. Rf7+ {[%clk 0:00:29.2]} 77... Kg8 {[%clk 0:00:04.2]} 78.
Kf5 {[%clk 0:00:29.4]} 78... Rc5+ {[%clk 0:00:03.5]} 79. Kg4 {[%clk 0:00:29.7]}
79... Rc1 {[%clk 0:00:03.4]} 80. Rb7 {[%clk 0:00:30.1]} 80... Kf8 {[%clk
0:00:02.5]} 81. Rb8+ {[%clk 0:00:29.9]} 81... Ke7 {[%clk 0:00:02.9]} 82. Kg5
{[%clk 0:00:30.4]} 82... Rg1+ {[%clk 0:00:02.3]} 83. Kf5 {[%clk 0:00:30.8]}
83... Ra1 {[%clk 0:00:01]} 84. Rb7+ {[%clk 0:00:31.4]} 84... Kf8 {[%clk
0:00:01.4]} 85. Rf7+ {[%clk 0:00:32.3]} 85... Kg8 {[%clk 0:00:01.3]} 86. Rc7
{[%clk 0:00:33.2]} 86... Kf8 {[%clk 0:00:01.9]} 87. Kg4 {[%clk 0:00:33.7]} 87...
Rg1+ {[%clk 0:00:01.2]} 88. Kf5 {[%clk 0:00:33.1]} 88... Ra1 {[%clk 0:00:02.1]}
89. Rc8+ {[%clk 0:00:33.4]} 89... Ke7 {[%clk 0:00:02.5]} 90. Rg8 {[%clk
0:00:33.9]} 90... Ra5+ {[%clk 0:00:01.4]} 91. Kg4 {[%clk 0:00:34.6]} 91... Kf6
{[%clk 0:00:02.1]} 92. f5 {[%clk 0:00:34.5]} 92... Ra4+ {[%clk 0:00:02.3]} 93.
Kh5 {[%clk 0:00:34.9]} 93... Kxf5 {[%clk 0:00:02.1]} 94. Rf8+ {[%clk 0:00:35.4]}
94... Ke6 {[%clk 0:00:01.8]} 95. Rf7 {[%clk 0:00:36.3]} 95... Ra5+ {[%clk
0:00:01.7]} 96. Kg4 {[%clk 0:00:36.9]} 96... Ra4+ {[%clk 0:00:02]} 97. Kg5
{[%clk 0:00:37.5]} 97... Ra5+ {[%clk 0:00:02.4]} 98. Kf4 {[%clk 0:00:38.2]}
98... Ra4+ {[%clk 0:00:02.8]} 99. Ke3 {[%clk 0:00:38.9]} 99... Ra3+ {[%clk
0:00:03.1]} 100. Ke4 {[%clk 0:00:39.6]} 100... Rg3 {[%clk 0:00:03.3]} 101. Rxg7
{[%clk 0:00:39.7]} 101... Kf6 {[%clk 0:00:03.9]} 102. Rg8 {[%clk 0:00:40.4]}
102... Rxg6 {[%clk 0:00:03.7]} 103. Rxg6+ {[%clk 0:00:41.3]} 103... Kxg6 {[%clk
0:00:04.6]} 1/2-1/2